bitfinex/quotes_BTCUSD_20250127
["timestamp","ask_amount","ask_price","bid_price","bid_amount"]
[1737963998605,0.00079063,98966.0,98960.0,0.151576]
[1737963998808,0.00079063,98966.0,98962.0,0.151572]
[1737963999015,0.00079063,98966.0,98957.0,0.001]
[1737963999244,0.151571,98964.0,98942.0,0.202137]
[1737963999447,0.00079063,98966.0,98957.0,0.001]
[1737963999868,0.151579,98958.0,98957.0,0.001]
[1737964000064,0.00079063,98966.0,98957.0,0.001]
[1737964000065,0.151575,98961.0,98957.0,0.001]
[1737964000327,0.00079063,98966.0,98952.0,0.023]
[1737964000620,0.00079063,98966.0,98965.0,0.151568]
[1737964000960,0.00079063,98966.0,98965.0,0.24891529]
[1737964001191,0.00079063,98966.0,98965.0,0.39891529]
[1737964001811,0.00079063,98966.0,98965.0,0.40291529]
[1737964002056,0.00079063,98966.0,98965.0,0.41402897]
[1737964002515,0.00079063,98966.0,98965.0,0.41802897]
[1737964002695,0.00079063,98966.0,98965.0,0.41902897]
[1737964003437,0.151545,98981.0,98967.0,0.301565]
[1737964003658,0.151539,98984.0,98967.0,0.30171337]
[1737964003866,0.000298,98985.0,98967.0,0.30171337]
[1737964004068,0.000298,98985.0,98967.0,0.15171337]
[1737964004069,0.202058,98982.0,98967.0,0.15171337]
[1737964004273,0.202058,98982.0,98967.0,0.00014837]
[1737964004473,0.202058,98982.0,98967.0,0.15171337]
[1737964004680,0.151862,98968.0,98967.0,0.00014837]
[1737964004908,0.000298,98968.0,98967.0,0.00014837]
[1737964005340,0.000298,98968.0,98967.0,0.00314837]
[1737964005686,0.000298,98968.0,98967.0,0.00014837]
[1737964005883,0.000298,98968.0,98967.0,0.00314837]
[1737964006243,0.000298,98968.0,98967.0,0.00014837]
[1737964006459,0.001298,98968.0,98967.0,0.00014837]
[1737964007214,0.000298,98968.0,98967.0,0.00014837]
[1737964008177,0.000298,98968.0,98967.0,0.15171337]
[1737964008383,0.000298,98968.0,98967.0,0.00014837]
[1737964009219,0.000298,98968.0,98967.0,0.00114837]
[1737964009834,0.000298,98968.0,98967.0,0.00414837]
[1737964010038,0.151862,98968.0,98967.0,0.00314837]
[1737964010685,0.000298,98968.0,98967.0,0.00314837]
[1737964011878,0.000298,98968.0,98967.0,0.15471337]
[1737964012021,0.000298,98968.0,98967.0,0.00314837]
[1737964012683,0.000298,98968.0,98967.0,0.15471337]
[1737964013677,0.0784,99003.0,98968.0,0.15]
[1737964013879,0.0462,99019.0,98967.0,0.25150607]
[1737964013880,0.0784,99017.0,98984.0,0.301539]
[1737964014135,0.201975,99022.0,98984.0,0.39888629]
[1737964014480,0.0784,99027.0,98984.0,0.39888629]
[1737964014865,0.20194,99039.0,99028.0,0.151471]
[1737964015073,0.040408,99025.0,99024.0,0.151478]
[1737964015282,0.02044756,99040.0,99036.0,0.151459]
[1737964015496,0.02044756,99040.0,99039.0,0.151455]
[1737964015705,0.040402,99039.0,99038.0,0.151457]
[1737964015909,0.10106621,99057.0,99044.0,0.151447]
[1737964015910,0.151437,99051.0,99044.0,0.151447]
[1737964016119,0.001,99039.0,99030.0,0.351959]
[1737964016367,0.001,99039.0,99038.0,0.151457]
[1737964016570,0.001,99039.0,99025.0,0.00014837]
[1737964016571,0.02047183,99061.0,99025.0,0.00014837]
[1737964016773,0.0404,99052.0,99026.0,0.09835702]
[1737964016981,0.15145,99043.0,99027.0,0.201965]
[1737964017195,0.151442,99048.0,99039.0,0.151455]
[1737964017425,0.0404,99052.0,99025.0,0.00014837]
[1737964017641,0.20192,99049.0,99039.0,0.151455]
[1737964017848,0.003,99040.0,99029.0,0.15]
[1737964018059,0.003,99040.0,99039.0,0.151455]
[1737964018262,0.0404,99052.0,99031.0,0.201956]
[1737964018263,0.002,99051.0,99031.0,0.201956]
[1737964018479,0.153438,99051.0,99032.0,0.09734729]
[1737964018705,0.002,99048.0,99044.0,0.151447]
[1737964018930,0.0404,99052.0,99024.0,0.20197]
[1737964018931,0.151455,99039.0,99024.0,0.20197]
[1737964019132,0.0404,99052.0,99006.0,0.202006]
[1737964019133,0.023,99049.0,99006.0,0.202006]
[1737964019343,0.201953,99033.0,99012.0,0.201994]
[1737964019563,0.12959333,99048.0,99016.0,0.151489]
[1737964019564,0.151475,99026.0,99016.0,0.151489]
[1737964019781,0.201947,99036.0,99024.0,0.151477]
[1737964020033,0.201928,99045.0,99022.0,0.201974]
[1737964020240,0.001,99048.0,99026.0,0.201967]
[1737964020449,0.001,99048.0,99022.0,0.201974]
[1737964020654,0.201924,99047.0,99033.0,0.151463]
[1737964020866,0.201928,99045.0,99026.0,0.201967]
[1737964021074,0.01854,99045.0,99028.0,0.201963]
[1737964021304,0.169987,99045.0,99037.0,0.151457]
[1737964021518,0.169987,99045.0,99028.0,0.09835699]
[1737964021519,0.01854,99045.0,99028.0,0.09835699]
[1737964021733,0.01854,99045.0,99044.0,0.151447]
[1737964021950,0.01854,99045.0,99042.0,0.201933]
[1737964022202,0.01854,99045.0,99044.0,0.151447]
[1737964023102,0.01854,99045.0,99042.0,0.201933]
[1737964023317,0.01854,99045.0,99015.0,0.03]
[1737964023537,0.01854,99045.0,99026.0,0.15]
[1737964023760,0.220469,99045.0,99025.0,0.00014837]
[1737964024093,0.220469,99045.0,99035.0,0.151461]
[1737964024094,0.000298,99037.0,99035.0,0.151461]
[1737964024185,0.000298,99037.0,99029.0,0.15147]
[1737964024436,0.201946,99036.0,99025.0,0.00014837]
[1737964024679,0.15138452,99026.0,99025.0,0.00014837]
[1737964025597,0.151475,99026.0,99025.0,0.00014837]
[1737964026235,0.154475,99026.0,99025.0,0.00014837]
[1737964026455,0.152475,99026.0,99025.0,0.00014837]
[1737964026903,0.152475,99026.0,99025.0,0.00114837]
[1737964027330,0.001,99026.0,99025.0,0.15262437]
[1737964027538,0.001,99026.0,99015.0,0.201989]
[1737964027539,0.000298,99037.0,99016.0,0.15]
[1737964027748,0.00044587,99037.0,99034.0,0.151463]
[1737964027984,0.00044587,99037.0,99036.0,0.15146]
[1737964028949,0.00044587,99037.0,99036.0,0.16645888]
[1737964029564,0.00244587,99037.0,99036.0,0.16645888]
[1737964029811,0.00044587,99037.0,99036.0,0.16645888]
[1737964030246,0.00044587,99037.0,99036.0,0.15446]
[1737964030605,0.00244587,99037.0,99036.0,0.152775]
[1737964030978,0.00244587,99037.0,99036.0,0.15446]
[1737964031206,0.00044587,99037.0,99036.0,0.003]
[1737964031381,0.15190387,99037.0,99036.0,0.003]
[1737964031629,0.00044587,99037.0,99026.0,0.201966]
[1737964031877,0.151461,99036.0,99027.0,0.151472]
[1737964032076,0.00044587,99037.0,99036.0,0.15446]
[1737964032280,0.00044587,99037.0,99036.0,0.15146]
[1737964032603,0.00044587,99037.0,99036.0,0.25080729]
[1737964032834,0.00044587,99037.0,99036.0,1.34259929]
[1737964033413,0.00044587,99037.0,99036.0,1.34059929]
[1737964035430,0.00044587,99037.0,99036.0,1.34259929]
[1737964036056,0.00044587,99037.0,99036.0,1.72938229]
[1737964036057,8.7e-07,99037.0,99036.0,1.72938229]
[1737964036265,6.348e-05,99066.0,99064.0,0.301417]
[1737964036473,6.348e-05,99066.0,99064.0,1.34055629]
[1737964036678,0.00079246,99065.0,99064.0,1.34055629]
[1737964037292,0.00079246,99065.0,99064.0,1.53108429]
[1737964037669,0.00079246,99065.0,99064.0,1.47818629]
[1737964038097,0.00079246,99065.0,99064.0,1.34055629]
[1737964038345,0.00079246,99065.0,99064.0,1.35475712]
[1737964038726,0.00079246,99065.0,99064.0,1.35775712]
[1737964039180,0.00079246,99065.0,99064.0,0.003]
[1737964039397,0.00179246,99065.0,99064.0,0.163417]
[1737964039721,0.00079246,99065.0,99064.0,0.154417]
[1737964039928,0.00079246,99065.0,99064.0,0.163417]
[1737964040360,0.00079246,99065.0,99064.0,0.154417]
[1737964040531,0.00079246,99065.0,99064.0,0.151417]
[1737964040732,0.00079246,99065.0,99064.0,0.154417]
[1737964041335,0.00079246,99065.0,99064.0,0.151417]
[1737964041553,0.00079246,99065.0,99064.0,0.152417]
[1737964041731,0.00079246,99065.0,99064.0,0.25577366]
[1737964041929,0.00079246,99065.0,99064.0,0.40476429]
[1737964042545,0.00079246,99065.0,99064.0,0.41584089]
[1737964043792,0.00079246,99065.0,99064.0,1.19293593]
[1737964043997,0.00079246,99065.0,99064.0,0.69024589]
[1737964044814,0.00079246,99065.0,99064.0,0.68924589]
[1737964045023,0.00079246,99065.0,99064.0,0.68824589]
[1737964045227,0.00079246,99065.0,99064.0,0.7193754]
[1737964045512,0.00179246,99065.0,99064.0,0.69724589]
[1737964046093,0.00079246,99065.0,99064.0,0.73937886]
[1737964046452,0.00179246,99065.0,99064.0,0.74837886]
[1737964046663,0.00179246,99065.0,99064.0,0.74437886]
[1737964046983,0.00079246,99065.0,99064.0,0.71937886]
[1737964047187,0.00079246,99065.0,99064.0,0.77237886]
[1737964047369,9.4e-07,99067.0,99066.0,0.331414]
[1737964047578,0.00029779,99084.0,99076.0,0.01]
[1737964047930,7.9e-07,99084.0,99083.0,0.53143529]
[1737964048154,0.049,99151.0,99083.0,0.53143529]
[1737964048155,0.0768,99142.0,99099.0,0.01]
[1737964048334,0.049,99172.0,99136.0,0.301307]
[1737964048467,0.00044561,99137.0,99136.0,1.45736629]
[1737964048672,0.049,99192.0,99136.0,1.45736629]
[1737964048673,6.1e-07,99139.0,99138.0,0.01]
[1737964048879,6.1e-07,99139.0,99138.0,0.76078237]
[1737964049100,6.1e-07,99139.0,99138.0,0.42977409]
[1737964049343,6.1e-07,99139.0,99138.0,0.44065323]
[1737964049548,6.1e-07,99139.0,99138.0,0.40953043]
[1737964050366,6.1e-07,99139.0,99138.0,0.41753043]
[1737964051177,6.1e-07,99139.0,99138.0,0.41953043]
[1737964051482,0.00297302,99158.0,99157.0,0.151275]
[1737964051689,0.00297302,99158.0,99138.0,0.26822643]
[1737964051690,0.00297302,99158.0,99152.0,0.151282]
[1737964051900,0.00297302,99158.0,99157.0,0.151275]
[1737964052709,0.00297302,99158.0,99157.0,0.24862229]
[1737964053003,0.0768,99197.0,99158.0,0.02]
[1737964053215,0.0768,99197.0,99176.0,0.15]
[1737964053216,0.07729397,99197.0,99176.0,0.15]
[1737964053388,0.07729397,99197.0,99193.0,0.15122]
[1737964053599,0.040339,99196.0,99177.0,0.09734729]
[1737964054018,0.191556,99196.0,99188.0,0.151227]
[1737964054223,0.040339,99196.0,99177.0,0.09734729]
[1737964054670,0.040339,99196.0,99195.0,0.151217]
[1737964055678,0.040339,99196.0,99185.0,0.201642]
[1737964055886,0.040339,99196.0,99176.0,0.01099171]
[1737964055887,0.040339,99196.0,99195.0,0.001]
[1737964056293,0.151221,99193.0,99184.0,0.151234]
[1737964056517,0.040339,99196.0,99171.0,0.01115068]
[1737964056518,0.151217,99195.0,99186.0,0.15123]
[1737964056725,0.040339,99196.0,99171.0,0.01115068]
[1737964056726,0.040339,99196.0,99173.0,0.15]
[1737964056874,0.040339,99196.0,99195.0,0.151217]
[1737964057075,0.040339,99196.0,99195.0,0.155217]
[1737964057705,0.040339,99196.0,99195.0,0.004]
[1737964058170,0.040339,99196.0,99195.0,0.155217]
[1737964058377,0.040339,99196.0,99195.0,0.151217]
[1737964058944,0.040339,99196.0,99177.0,0.201659]
[1737964059146,0.040339,99196.0,99187.0,0.151228]
[1737964059366,0.040339,99196.0,99195.0,0.002]
[1737964059796,0.0404806,99196.0,99195.0,0.002]
[1737964060213,0.0404806,99196.0,99181.0,1.03913929]
[1737964060422,0.0404806,99196.0,99192.0,0.15122]
[1737964060594,0.0404806,99196.0,99188.0,0.201635]
[1737964060792,0.0404806,99196.0,99191.0,0.151222]
[1737964061011,0.0404806,99196.0,99192.0,0.15122]
[1737964061254,0.0404806,99196.0,99188.0,0.09734729]
[1737964061453,0.0404806,99196.0,99191.0,0.151222]
[1737964061588,0.0404806,99196.0,99187.0,0.004]
[1737964061810,0.0404806,99196.0,99189.0,0.151225]
[1737964062037,0.0404806,99196.0,99191.0,0.003]
[1737964062249,0.0404806,99196.0,99191.0,0.154222]
[1737964062430,0.0404806,99196.0,99191.0,0.003]
[1737964062644,0.151217,99195.0,99191.0,0.003]
[1737964062843,0.0404806,99196.0,99191.0,0.154222]
[1737964063444,0.0404806,99196.0,99195.0,0.151217]
[1737964063649,0.0001416,99196.0,99195.0,0.24856429]
[1737964064632,0.0001416,99196.0,99195.0,1.19035629]
[1737964064843,0.0001416,99196.0,99195.0,1.34235629]
[1737964065039,0.0001416,99196.0,99195.0,2.15655029]
[1737964065248,0.0001416,99196.0,99195.0,1.53167429]
[1737964065457,0.0001416,99196.0,99195.0,1.45959029]
[1737964065657,0.0001416,99196.0,99195.0,1.45759029]
[1737964066068,0.0001416,99196.0,99195.0,1.46459029]
[1737964066274,0.0001416,99196.0,99195.0,1.45759029]
[1737964066629,0.03610427,99217.0,99196.0,0.15]
[1737964066833,0.03625248,99217.0,99216.0,0.151185]
[1737964067043,0.00014821,99217.0,99216.0,0.24853229]
[1737964067469,0.00014821,99217.0,99216.0,0.23853229]
[1737964067872,0.00014821,99217.0,99216.0,0.38853229]
[1737964068085,0.00014821,99217.0,99216.0,0.79384473]
[1737964068300,0.00014821,99217.0,99216.0,1.90528073]
[1737964068515,0.00014821,99217.0,99216.0,1.81207273]
[1737964068711,0.00014821,99217.0,99216.0,1.18569573]
[1737964069124,0.00014821,99217.0,99216.0,1.14876973]
[1737964069338,0.00014821,99217.0,99216.0,0.39257773]
[1737964069615,0.00014821,99217.0,99216.0,0.38357773]
[1737964070246,0.00014821,99217.0,99216.0,0.97645573]
[1737964070453,0.00014821,99217.0,99216.0,0.57041573]
[1737964070651,0.00014821,99217.0,99216.0,0.38357773]
[1737964070862,0.00014821,99217.0,99216.0,0.55501573]
[1737964071069,0.00014821,99217.0,99216.0,0.55901573]
[1737964071294,0.00014821,99217.0,99216.0,0.38757773]
[1737964071492,0.00014821,99217.0,99216.0,0.39657773]
[1737964071722,0.00028961,99217.0,99216.0,0.64148473]
[1737964071923,0.00028961,99217.0,99216.0,0.39257773]
[1737964072128,0.00028961,99217.0,99216.0,0.55901573]
[1737964072504,0.00028961,99217.0,99216.0,0.24657773]
[1737964073008,0.00028961,99217.0,99216.0,0.11034729]
[1737964073402,0.15147261,99217.0,99216.0,0.013]
[1737964074033,0.15147261,99217.0,99216.0,0.004]
[1737964074241,0.00028961,99217.0,99216.0,0.008]
[1737964074447,0.00028961,99217.0,99216.0,0.159185]
[1737964074655,0.00028961,99217.0,99216.0,0.25153229]
[1737964075052,0.00028961,99217.0,99216.0,0.24853229]
[1737964075260,6.1e-07,99217.0,99216.0,0.39853229]
[1737964075387,0.0001415,99239.0,99223.0,0.01]
[1737964075598,0.0001415,99239.0,99235.0,0.24850329]
[1737964075801,0.0001415,99239.0,99235.0,0.40782329]
[1737964076020,0.0001415,99239.0,99235.0,0.39850329]
[1737964076273,0.0001415,99239.0,99235.0,0.24850329]
[1737964077849,0.0001415,99239.0,99235.0,0.25150329]
[1737964078319,0.0001415,99239.0,99235.0,0.24850329]
[1737964078446,0.0001415,99239.0,99235.0,0.17515122]
[1737964078656,0.2306955,99236.0,99235.0,0.02699522]
[1737964078856,0.2306955,99236.0,99235.0,0.01799522]
[1737964079059,0.2306955,99236.0,99235.0,0.01999522]
[1737964079410,0.32804279,99236.0,99235.0,0.01999522]
[1737964079746,0.32804279,99236.0,99235.0,0.02299522]
[1737964079963,0.2306955,99236.0,99235.0,0.02299522]
[1737964080160,0.2306955,99236.0,99235.0,0.008]
[1737964080551,0.32804279,99236.0,99235.0,0.003]
[1737964080745,0.151173,99224.0,99223.0,0.0021]
[1737964080957,0.24852029,99224.0,99223.0,0.0021]
[1737964081354,0.201544,99234.0,99224.0,0.151173]
[1737964081555,0.151171,99226.0,99223.0,0.0021]
[1737964081872,0.0815415,99236.0,99223.0,0.0021]
[1737964081873,0.0108709,99234.0,99223.0,0.0021]
[1737964082081,0.0795415,99236.0,99223.0,0.0021]
[1737964082364,0.0795415,99236.0,99235.0,0.151156]
[1737964082365,0.0001415,99236.0,99235.0,0.151156]
[1737964082661,0.0001415,99236.0,99223.0,0.0021]
[1737964082864,0.151173,99224.0,99223.0,0.0021]
[1737964083080,0.276673,99224.0,99223.0,0.0021]
[1737964083287,0.37402029,99224.0,99223.0,0.0021]
[1737964083507,0.24852029,99224.0,99223.0,0.0021]
[1737964083904,0.24852029,99224.0,99195.0,0.04125673]
[1737964083905,0.151215,99196.0,99195.0,0.04125673]
[1737964084119,0.24856229,99196.0,99195.0,0.04140494]
[1737964084540,0.151215,99196.0,99195.0,0.04140494]
[1737964084809,0.22484473,99205.0,99195.0,0.04140494]
[1737964084810,0.22484473,99220.0,99195.0,0.04140494]
[1737964085029,0.02025395,99207.0,99195.0,0.04140494]
[1737964085238,0.153215,99196.0,99195.0,0.04140494]
[1737964085663,0.24856229,99196.0,99195.0,0.04140494]
[1737964086522,0.151261,99166.0,99138.0,0.00029694]
[1737964086731,0.32440829,99166.0,99138.0,0.00029694]
[1737964086951,0.32440829,99166.0,99138.0,0.01029694]
[1737964087162,0.227061,99166.0,99141.0,0.01]
[1737964087578,0.15129,99148.0,99141.0,0.01]
[1737964087784,0.151302,99139.0,99138.0,0.00029694]
[1737964087990,0.151302,99139.0,99138.0,0.00079091]
[1737964088209,0.201716,99149.0,99138.0,0.00079091]
[1737964088419,0.151294,99145.0,99138.0,0.00079091]
[1737964088665,0.0768,99166.0,99138.0,0.00079091]
[1737964088869,0.151302,99139.0,99138.0,0.00079091]
[1737964089723,0.24864929,99139.0,99138.0,0.00079091]
[1737964089937,0.33530785,99139.0,99138.0,0.00079091]
[1737964090569,0.23796056,99139.0,99138.0,0.00079091]
[1737964090788,0.16216056,99139.0,99138.0,0.00079091]
[1737964091417,0.16516056,99139.0,99138.0,0.00179091]
[1737964091631,0.16216056,99139.0,99138.0,0.00079091]
[1737964091841,0.26150785,99139.0,99138.0,0.00079091]
[1737964092075,0.26450785,99139.0,99138.0,0.00079091]
[1737964092274,0.26150785,99139.0,99138.0,0.00079091]
[1737964092521,0.16216056,99139.0,99138.0,0.00079091]
[1737964092738,0.16716056,99139.0,99138.0,0.00079091]
[1737964093154,0.26450785,99139.0,99138.0,0.00079091]
[1737964093572,0.16716056,99139.0,99138.0,0.00079091]
[1737964094017,0.16516056,99139.0,99138.0,0.00079091]
[1737964094672,0.34236991,99139.0,99138.0,0.00079091]
[1737964094896,0.34236991,99139.0,99086.0,0.01]
[1737964094897,0.39457292,99120.0,99086.0,0.01]
[1737964095129,0.151368,99096.0,99095.0,0.00044498]
[1737964095335,0.24871529,99096.0,99095.0,0.00044498]
[1737964096185,0.17168348,99096.0,99095.0,0.00044498]
[1737964096406,0.0309945,99096.0,99095.0,0.00044498]
[1737964096611,0.39557292,99120.0,99095.0,0.00044498]
[1737964096814,0.151368,99096.0,99095.0,0.00044498]
[1737964097682,0.154368,99096.0,99095.0,0.00044498]
[1737964097812,0.154368,99096.0,99095.0,0.00144498]
[1737964098024,0.161368,99096.0,99095.0,0.00144498]
[1737964098273,0.151368,99096.0,99095.0,0.00044498]
[1737964098426,0.16288607,99096.0,99095.0,0.00044498]
[1737964098835,0.26212604,99096.0,99095.0,0.00044498]
[1737964099051,0.25912604,99096.0,99095.0,0.00044498]
[1737964099825,0.33492604,99096.0,99095.0,0.00044498]
[1737964100421,0.33592604,99096.0,99095.0,0.00044498]
[1737964100624,0.26012604,99096.0,99095.0,0.00044498]
[1737964101030,0.01251807,99096.0,99095.0,0.00044498]
[1737964101263,0.16488607,99096.0,99095.0,0.00044498]
[1737964101565,0.17088607,99096.0,99095.0,0.00144498]
[1737964101774,0.16788607,99096.0,99095.0,0.00144498]
[1737964101940,0.16188607,99096.0,99095.0,0.00044498]
[1737964102114,0.16688607,99096.0,99095.0,0.00044498]
[1737964102703,0.16388607,99096.0,99095.0,0.00044498]
[1737964102909,0.002,99096.0,99095.0,0.00044498]
[1737964103537,0.153368,99096.0,99095.0,0.00044498]
[1737964104138,0.24871529,99096.0,99095.0,0.00044498]
[1737964104466,0.25071529,99096.0,99095.0,0.00044498]
[1737964104875,0.24971529,99096.0,99095.0,0.00044498]
[1737964105187,0.25071529,99096.0,99095.0,0.00044498]
[1737964105749,0.29110229,99096.0,99095.0,0.00044498]
[1737964106383,0.29410229,99096.0,99095.0,0.00044498]
[1737964106595,0.196755,99096.0,99095.0,0.00044498]
[1737964106795,0.25371529,99096.0,99095.0,0.00044498]
[1737964106979,0.29410329,99096.0,99095.0,0.00044498]
[1737964107674,0.042388,99096.0,99095.0,0.00044498]
[1737964107914,0.002,99096.0,99095.0,0.00044498]
[1737964108044,0.001,99096.0,99095.0,0.00044498]
[1737964108247,0.151368,99096.0,99095.0,0.00044498]
[1737964108451,0.152368,99096.0,99095.0,0.00044498]
[1737964108821,0.25171529,99096.0,99095.0,0.00044498]
[1737964109070,0.151412,99067.0,99059.0,0.02]
[1737964109278,0.151416,99065.0,99057.0,0.00080911]
[1737964109483,0.0755,99096.0,99062.0,0.02]
[1737964109659,0.09734729,99095.0,99062.0,0.02]
[1737964109903,0.151398,99077.0,99066.0,0.151413]
[1737964110110,0.09734729,99095.0,99067.0,0.151412]
[1737964110311,0.20183,99093.0,99062.0,0.02]
[1737964110516,0.01989494,99081.0,99069.0,0.151408]
[1737964110717,0.151395,99079.0,99069.0,0.151408]
[1737964110924,0.01989494,99081.0,99069.0,0.02]
[1737964111126,0.151376,99091.0,99074.0,0.02]
[1737964111344,0.151379,99089.0,99075.0,0.02]
[1737964111519,0.15139,99082.0,99075.0,0.02]
[1737964111750,0.09734729,99088.0,99067.0,0.151411]
[1737964111955,0.09734729,99088.0,99069.0,0.003]
[1737964112127,0.201842,99087.0,99073.0,0.02]
[1737964112363,0.24873029,99086.0,99073.0,0.02]
[1737964112572,0.151394,99079.0,99075.0,0.004]
[1737964112746,0.151394,99079.0,99075.0,0.001]
[1737964113055,0.09734729,99086.0,99073.0,0.02]
[1737964113257,0.09734729,99086.0,99069.0,0.02]
[1737964113401,0.151386,99084.0,99073.0,0.02]
[1737964113913,0.151389,99083.0,99073.0,0.02]
[1737964114142,0.02028282,99085.0,99067.0,0.002]
[1737964114343,0.201856,99081.0,99059.0,0.201898]
[1737964114548,0.201848,99084.0,99073.0,0.001]
[1737964114748,0.353234,99084.0,99073.0,0.001]
[1737964114950,0.02028282,99085.0,99071.0,0.02]
[1737964115317,0.09734729,99084.0,99060.0,0.02]
[1737964115521,0.151394,99079.0,99066.0,0.151412]
[1737964115722,0.09734729,99084.0,99060.0,0.02]
[1737964115926,0.201853,99082.0,99064.0,0.171416]
[1737964116135,0.09734729,99081.0,99064.0,0.02]
[1737964116348,0.02028282,99085.0,99064.0,0.02]
[1737964116549,0.151391,99081.0,99067.0,0.151411]
[1737964116761,0.09734729,99084.0,99064.0,0.02]
[1737964116879,0.151393,99080.0,99064.0,0.02]
[1737964117084,0.02028282,99085.0,99065.0,0.201887]
[1737964117285,0.151388,99083.0,99070.0,0.151407]
[1737964117506,0.02028282,99085.0,99066.0,0.201885]
[1737964117687,0.151388,99083.0,99071.0,0.151406]
[1737964117886,0.151389,99082.0,99071.0,0.151406]
[1737964118259,0.151386,99084.0,99073.0,0.151403]
[1737964118501,0.01854,99088.0,99075.0,0.201867]
[1737964118702,0.01854,99088.0,99079.0,0.02]
[1737964119122,0.01854,99088.0,99084.0,0.151386]
[1737964119313,0.01854,99088.0,99079.0,0.02]
[1737964119617,0.01854,99088.0,99086.0,0.02]
[1737964119824,0.01854,99088.0,99087.0,0.32582929]
[1737964120031,0.01854,99088.0,99087.0,0.47582929]
[1737964120225,0.01648056,99088.0,99087.0,0.55262929]
[1737964120459,0.01059086,99130.0,99129.0,0.151317]
[1737964120668,0.040372,99140.0,99120.0,0.02]
[1737964120876,0.01060712,99138.0,99128.0,0.03]
[1737964121096,0.0001414,99138.0,99137.0,0.151305]
[1737964121314,0.00028935,99138.0,99137.0,0.151305]
[1737964121720,0.00028935,99138.0,99137.0,0.171305]
[1737964121897,0.00028935,99138.0,99125.0,0.02]
[1737964122098,0.15131,99135.0,99122.0,0.151327]
[1737964122308,0.00228935,99138.0,99121.0,0.02]
[1737964122517,0.00228935,99138.0,99114.0,0.01]
[1737964122518,0.151311,99134.0,99118.0,0.02]
[1737964122722,0.151311,99134.0,99121.0,0.151329]
[1737964122957,0.02047647,99137.0,99118.0,0.02]
[1737964123162,0.01315943,99138.0,99124.0,0.02]
[1737964123304,0.01315943,99138.0,99122.0,0.02]
[1737964123504,0.09734729,99137.0,99114.0,0.02]
[1737964123704,0.09734729,99137.0,99104.0,0.0471]
[1737964124012,0.173,99136.0,99089.0,0.0768]
[1737964124274,0.10928855,99137.0,99079.0,0.201857]
[1737964124275,0.023,99129.0,99079.0,0.02]
[1737964124548,0.201779,99118.0,99089.0,0.02]
[1737964124750,0.151343,99113.0,99099.0,0.151362]
[1737964124941,0.09734729,99118.0,99093.0,0.02]
[1737964125146,0.201802,99107.0,99090.0,0.02]
[1737964125305,0.151355,99105.0,99093.0,0.151372]
[1737964125506,0.151361,99101.0,99089.0,0.004]
[1737964125709,0.151357,99104.0,99089.0,0.004]
[1737964125916,0.353154,99107.0,99099.0,0.003]
[1737964126095,0.01970933,99109.0,99099.0,0.003]
[1737964126309,0.09734729,99108.0,99077.0,0.151396]
[1737964126698,0.151386,99084.0,99071.0,0.151405]
[1737964126898,0.09734729,99108.0,99064.0,0.02029715]
[1737964126899,0.023,99107.0,99064.0,0.02029715]
[1737964127103,0.201808,99104.0,99064.0,0.02029715]
[1737964127270,0.151388,99083.0,99072.0,0.02]
[1737964127489,0.09734729,99103.0,99076.0,0.151397]
[1737964127685,0.09734729,99103.0,99072.0,0.02]
[1737964127887,0.0206198,99090.0,99072.0,0.02]
[1737964128221,0.151382,99087.0,99075.0,0.151399]
[1737964128441,0.151382,99087.0,99072.0,0.02]
[1737964128442,0.151371,99095.0,99077.0,0.201863]
[1737964128647,0.01086259,99103.0,99081.0,0.201855]
[1737964128846,0.151366,99098.0,99083.0,0.02]
[1737964129054,0.201812,99102.0,99084.0,0.151385]
[1737964129285,0.151369,99096.0,99085.0,0.151384]
[1737964129460,0.02064201,99106.0,99086.0,0.151383]
[1737964129664,0.01068873,99109.0,99086.0,0.151383]
[1737964129873,0.09734729,99108.0,99083.0,0.02]
[1737964130091,0.02017847,99107.0,99083.0,0.02]
[1737964130521,0.02017847,99107.0,99082.0,0.02]
[1737964130691,0.151377,99091.0,99083.0,0.02]
[1737964130900,0.201829,99094.0,99064.0,0.20218615]
[1737964130901,0.151384,99086.0,99074.0,0.171401]
[1737964131102,0.09734729,99106.0,99081.0,0.001]
[1737964131309,0.151381,99088.0,99081.0,0.001]
[1737964131510,0.201826,99096.0,99074.0,0.01]
[1737964131713,0.09734729,99106.0,99083.0,0.02]
[1737964131714,0.151367,99097.0,99083.0,0.02]
[1737964131872,0.001,99106.0,99083.0,0.02]
[1737964132332,0.201808,99104.0,99083.0,0.02]
[1737964132472,0.151382,99087.0,99081.0,0.004]
[1737964132678,0.201816,99100.0,99078.0,0.02]
[1737964132878,0.151386,99084.0,99083.0,0.001]
[1737964133119,0.09734729,99099.0,99083.0,0.001]
[1737964133322,0.151383,99087.0,99083.0,0.001]
[1737964133699,0.09734729,99099.0,99083.0,0.001]
[1737964133901,0.201808,99104.0,99083.0,0.001]
[1737964134183,0.01854,99106.0,99101.0,0.15136]
[1737964134397,0.01854,99106.0,99101.0,0.151359]
[1737964134602,0.001,99104.0,99089.0,0.0485]
[1737964134810,0.09734729,99103.0,99080.0,0.0811]
[1737964135016,0.201815,99101.0,99079.0,0.201859]
[1737964135222,0.09734729,99100.0,99083.0,0.021]
[1737964135420,0.01854,99106.0,99083.0,0.021]
[1737964135421,0.02154,99106.0,99083.0,0.021]
[1737964135621,0.09734729,99105.0,99084.0,0.151386]
[1737964135824,0.201822,99097.0,99083.0,0.171386]
[1737964136026,0.201822,99097.0,99079.0,0.02]
[1737964136239,0.151367,99097.0,99086.0,0.151382]
[1737964136438,0.151367,99097.0,99083.0,0.02]
[1737964136439,0.201822,99097.0,99083.0,0.02]
[1737964136660,0.02014615,99098.0,99069.0,0.1011]
[1737964136862,0.02014615,99098.0,99078.0,0.02]
[1737964136863,0.151377,99091.0,99078.0,0.02]
[1737964137062,0.09734729,99091.0,99071.0,0.08975349]
[1737964137262,0.151386,99085.0,99073.0,0.151402]
[1737964137466,0.09734729,99091.0,99083.0,0.001]
[1737964137669,0.151386,99084.0,99083.0,0.001]